[Event "WYCC 2018 G14"]
[Site "Halkidiki"]
[Date "2018.10.21"]
[Round "3"]
[White "Obada, Ema"]
[Black "Matus, Nastassja"]
[Result "1-0"]
[ECO "B13"]
[WhiteElo "1811"]
[BlackElo "1983"]
[Annotator "NA"]
[PlyCount "43"]
[EventDate "2018.10.20"]
[EventType "swiss"]
[EventCountry "GRE"]
[SourceTitle "playchess.com"]
[Source "ChessBase"]
[SourceQuality "1"]
[TimeControl "40/5400+30:1800+30"]

1. e4 {[%emt 0:00:00]} c6 {[%emt 0:00:00]} 2. d4 {[%emt 0:00:00]} d5 {[%emt 0:00:00]} 3. exd5 {[%emt 0:00:00]} cxd5 {[%emt 0:00:00]} 4. Bd3 {[%emt 0:00:00]} Nc6 {[%emt 0:00:37]} 5. c3 {[%emt 0:00:05]} Nf6 {[%emt 0:00:46]} 6. h3 {[%emt 0:00:11]} e6 {[%emt 0:01:34]} 7. Nf3 {[%emt 0:01:27]} Bd6 {[%emt 0:02:09]} 8. Bg5 {[%emt 0:06:26]} h6 {[%emt 0:02:46]} 9. Be3 {[%emt 0:00:14]} O-O {[%emt 0:02:28]} 10. O-O {[%emt 0:01:02]} a6 {[%emt 0:04:34]} 11. Nbd2 {[%emt 0:01:46]} b5 {[%emt 0:02:39]} 12. a3 {[%emt 0:00:22]} Rb8 {[%emt 0:03:55]} 13. Qe2 {[%emt 0:06:19]} Qc7 {[%emt 0:06:59]} 14. Rae1 {[%emt 0:10:37]} Bd7 {[%emt 0:07:10]} 15. Nb3 {[%emt 0:02:51]} Ra8 {[%emt 0:15:07]} 16. Qd2 {[%emt 0:11:39]} Rfb8 {[%emt 0:09:12]} 17. Bxh6 {[%emt 0:01:16]} gxh6 {[%emt 0:10:01]} 18. Qxh6 {[%emt 0:00:09]} Qd8 {[%emt 0:07:40]} 19. Ng5 {[%emt 0:00:18]} Be8 {[%emt 0:02:14]} 20. f4 {[%emt 0:05:45]} Rb7 {[%emt 0:11:02]} 21. Re3 {[%emt 0:00:13]} Bd7 {[%emt 0:06:42]} 22. Bh7+ {[%emt 0:00:10]} 1-0

[Event "WYCC 2018 G14"]
[Site "Halkidiki"]
[Date "2018.10.21"]
[Round "3"]
[White "Bardorz, Jana"]
[Black "Guo, Hazel"]
[Result "1-0"]
[ECO "C10"]
[WhiteElo "1810"]
[BlackElo "1262"]
[Annotator "NA"]
[PlyCount "59"]
[EventDate "2018.10.20"]
[EventType "swiss"]
[EventCountry "GRE"]
[SourceTitle "playchess.com"]
[Source "ChessBase"]
[SourceQuality "1"]
[TimeControl "40/5400+30:1800+30"]

1. e4 {[%emt 0:00:00]} e6 {[%emt 0:00:00]} 2. d4 {[%emt 0:00:00]} d5 {[%emt 0:00:00]} 3. Nd2 {[%emt 0:00:00]} dxe4 {[%emt 0:00:00]} 4. Nxe4 {[%emt 0:00:00]} Bd7 {[%emt 0:00:00]} 5. Nf3 {[%emt 0:03:08]} Bc6 {[%emt 0:00:31]} 6. Bd3 {[%emt 0:04:43]} Nd7 {[%emt 0:01:05]} 7. O-O {[%emt 0:03:27]} Ngf6 {[%emt 0:01:06]} 8. Nxf6+ {[%emt 0:03:58]} Qxf6 {[%emt 0:00:28]} 9. Be2 {[%emt 0:07:45]} Bd6 {[%emt 0:02:29]} 10. c4 {[%emt 0:05:18]} b6 {[%emt 0:02:00]} 11. d5 {[%emt 0:08:30]} exd5 {[%emt 0:01:02]} 12. cxd5 {[%emt 0:00:17]} Bb7 {[%emt 0:00:17]} 13. Bb5 {[%emt 0:02:26]} Qd8 {[%emt 0:06:49]} 14. Re1+ {[%emt 0:03:11]} Be7 {[%emt 0:01:04]} 15. Ne5 {[%emt 0:02:59]} O-O {[%emt 0:04:12]} 16. Nxd7 {[%emt 0:01:02]} a6 {[%emt 0:04:25]} 17. Bc6 {[%emt 0:06:30]} Bxc6 {[%emt 0:02:04]} 18. dxc6 {[%emt 0:00:50]} Re8 {[%emt 0:05:57]} 19. Qg4 {[%emt 0:02:14]} Kh8 {[%emt 0:01:14]} 20. Bd2 {[%emt 0:02:54]} Bd6 {[%emt 0:07:24]} 21. Rxe8+ {[%emt 0:01:50]} Qxe8 {[%emt 0:00:08]} 22. Bc3 {[%emt 0:00:29]} f6 {[%emt 0:01:08]} 23. Nxf6 {[%emt 0:02:18]} Qf7 {[%emt 0:01:17]} 24. Nh5 {[%emt 0:02:29]} Bf8 {[%emt 0:03:28]} 25. Rd1 {[%emt 0:01:50]} Re8 {[%emt 0:04:40]} 26. Rd7 {[%emt 0:01:08]} Re7 {[%emt 0:00:10]} 27. Rxe7 {[%emt 0:03:40]} Qxe7 {[%emt 0:00:05]} 28. Nxg7 {[%emt 0:01:12]} Bxg7 {[%emt 0:01:35]} 29. Qc8+ {[%emt 0:00:11]} Qf8 {[%emt 0:00:17]} 30. Qxf8# {[%emt 0:00:06]} 1-0

[Event "WYCC 2018 G14"]
[Site "Halkidiki"]
[Date "2018.10.21"]
[Round "3"]
[White "Zeng, Sheena"]
[Black "Van Wyk, Keisha C"]
[Result "1-0"]
[ECO "E99"]
[WhiteElo "1807"]
[BlackElo "1106"]
[Annotator "NA"]
[PlyCount "65"]
[EventDate "2018.10.20"]
[EventType "swiss"]
[EventCountry "GRE"]
[SourceTitle "playchess.com"]
[Source "ChessBase"]
[SourceQuality "1"]
[TimeControl "40/5400+30:1800+30"]

1. d4 {[%emt 0:00:00]} Nf6 {[%emt 0:00:35]} 2. c4 {[%emt 0:00:00]} g6 {[%emt 0:00:38]} 3. Nc3 {[%emt 0:00:11]} Bg7 {[%emt 0:01:12]} 4. e4 {[%emt 0:00:10]} d6 {[%emt 0:00:12]} 5. Nf3 {[%emt 0:00:14]} O-O {[%emt 0:00:46]} 6. Be2 {[%emt 0:00:22]} Nc6 {[%emt 0:01:17]} 7. O-O {[%emt 0:00:45]} e5 {[%emt 0:02:05]} 8. d5 {[%emt 0:00:21]} Ne7 {[%emt 0:01:35]} 9. Ne1 {[%emt 0:00:25]} Nd7 {[%emt 0:01:31]} 10. f3 {[%emt 0:00:35]} f5 {[%emt 0:01:49]} 11. g4 {[%emt 0:00:52]} f4 {[%emt 0:05:05]} 12. h4 {[%emt 0:00:17]} Nf6 {[%emt 0:03:55]} 13. Nd3 {[%emt 0:00:55]} c6 {[%emt 0:08:39]} 14. Bd2 {[%emt 0:04:13]} Bd7 {[%emt 0:06:20]} 15. Nf2 {[%emt 0:04:39]} Kf7 {[%emt 0:07:02]} 16. Kg2 {[%emt 0:06:23]} Qc8 {[%emt 0:05:23]} 17. b4 {[%emt 0:01:39]} c5 {[%emt 0:06:13]} 18. a3 {[%emt 0:04:38]} Rb8 {[%emt 0:02:42]} 19. Nb5 {[%emt 0:07:28]} Bxb5 {[%emt 0:04:49]} 20. cxb5 {[%emt 0:01:34]} b6 {[%emt 0:00:27]} 21. Rc1 {[%emt 0:00:31]} h6 {[%emt 0:08:55]} 22. Qb3 {[%emt 0:01:26]} Rh8 {[%emt 0:11:11]} 23. Nd3 {[%emt 0:05:02]} a6 {[%emt 0:05:34]} 24. bxa6 {[%emt 0:00:41]} Qxa6 {[%emt 0:00:40]} 25. Nxe5+ {[%emt 0:00:12]} dxe5 {[%emt 0:02:59]} 26. Bxa6 {[%emt 0:00:04]} Rhd8 {[%emt 0:02:40]} 27. d6+ {[%emt 0:00:46]} Ke8 {[%emt 0:00:24]} 28. Bb5+ {[%emt 0:00:09]} Kf8 {[%emt 0:01:41]} 29. dxe7+ {[%emt 0:00:07]} Kxe7 {[%emt 0:00:09]} 30. Rfd1 {[%emt 0:00:14]} Rdc8 {[%emt 0:04:04]} 31. Bc3 {[%emt 0:00:49]} Ne8 {[%emt 0:02:23]} 32. Rd7+ {[%emt 0:00:09]} Kf6 {[%emt 0:00:36]} 33. Qf7# 1-0

[Event "WYCC 2018 G14"]
[Site "Halkidiki"]
[Date "2018.10.21"]
[Round "3"]
[White "Zeliantsova, Kseniya"]
[Black "Ivanovic, Tara"]
[Result "1-0"]
[ECO "C41"]
[WhiteElo "1804"]
[BlackElo "1085"]
[Annotator "NA"]
[PlyCount "75"]
[EventDate "2018.10.20"]
[EventType "swiss"]
[EventCountry "GRE"]
[SourceTitle "playchess.com"]
[Source "ChessBase"]
[SourceQuality "1"]
[TimeControl "40/5400+30:1800+30"]

1. e4 {[%emt 0:00:00]} e5 {[%emt 0:00:00]} 2. Nf3 {[%emt 0:00:00]} Nf6 {[%emt 0:00:00]} 3. d4 {[%emt 0:00:00]} d6 {[%emt 0:00:43]} 4. Nc3 {[%emt 0:00:07]} exd4 {[%emt 0:01:05]} 5. Nxd4 {[%emt 0:00:15]} Be7 {[%emt 0:01:21]} 6. Bc4 {[%emt 0:00:57]} O-O {[%emt 0:01:40]} 7. O-O {[%emt 0:01:01]} a6 {[%emt 0:02:33]} 8. a4 {[%emt 0:00:05]} Bd7 {[%emt 0:01:16]} 9. h3 {[%emt 0:04:07]} Nc6 {[%emt 0:00:59]} 10. Be3 {[%emt 0:00:30]} Ne5 {[%emt 0:01:47]} 11. Be2 {[%emt 0:02:31]} Be6 {[%emt 0:04:27]} 12. b3 {[%emt 0:06:59]} d5 {[%emt 0:02:54]} 13. f4 {[%emt 0:02:48]} Nc6 {[%emt 0:01:40]} 14. e5 {[%emt 0:01:03]} Ne8 {[%emt 0:02:26]} 15. f5 {[%emt 0:01:03]} Bc8 {[%emt 0:01:01]} 16. Nxc6 {[%emt 0:01:00]} bxc6 {[%emt 0:00:06]} 17. Qd4 {[%emt 0:06:28]} Bg5 {[%emt 0:02:00]} 18. Bxg5 {[%emt 0:04:10]} Qxg5 {[%emt 0:00:08]} 19. Bd3 {[%emt 0:04:13]} g6 {[%emt 0:01:55]} 20. h4 {[%emt 0:03:25]} Qh5 {[%emt 0:02:35]} 21. f6 {[%emt 0:06:45]} Qg4 {[%emt 0:01:16]} 22. Rf4 {[%emt 0:01:19]} Qe6 {[%emt 0:00:10]} 23. h5 {[%emt 0:03:03]} g5 {[%emt 0:02:17]} 24. Bf5 {[%emt 0:01:31]} Qxf5 {[%emt 0:00:59]} 25. Rxf5 {[%emt 0:00:06]} Bxf5 {[%emt 0:00:05]} 26. Qf2 {[%emt 0:01:32]} Bg4 {[%emt 0:00:38]} 27. Qg3 {[%emt 0:00:53]} Bxh5 {[%emt 0:00:45]} 28. Qxg5+ {[%emt 0:00:04]} Bg6 {[%emt 0:00:09]} 29. Ne2 {[%emt 0:02:01]} Kh8 {[%emt 0:00:49]} 30. Nd4 {[%emt 0:01:53]} Be4 {[%emt 0:01:52]} 31. g3 {[%emt 0:02:05]} c5 {[%emt 0:00:47]} 32. Nc6 {[%emt 0:01:27]} d4 {[%emt 0:00:30]} 33. Ne7 {[%emt 0:00:16]} Bxc2 {[%emt 0:00:20]} 34. Kf2 {[%emt 0:02:21]} Rd8 {[%emt 0:01:08]} 35. Ke2 {[%emt 0:02:02]} d3+ {[%emt 0:00:17]} 36. Kd2 {[%emt 0:00:04]} Bxb3 {[%emt 0:00:30]} 37. Qh6 {[%emt 0:00:05]} c4 {[%emt 0:00:56]} 38. Qxf8# {[%emt 0:00:05]} 1-0

[Event "WYCC 2018 G14"]
[Site "Halkidiki"]
[Date "2018.10.21"]
[Round "3"]
[White "Anghel, Maria"]
[Black "Sim, Jia Ru"]
[Result "0-1"]
[ECO "D02"]
[WhiteElo "1801"]
[BlackElo "1979"]
[Annotator "NA"]
[PlyCount "104"]
[EventDate "2018.10.20"]
[EventType "swiss"]
[EventCountry "GRE"]
[SourceTitle "playchess.com"]
[Source "ChessBase"]
[SourceQuality "1"]
[TimeControl "40/5400+30:1800+30"]

1. d4 {[%emt 0:00:00]} d5 {[%emt 0:00:00]} 2. Nf3 {[%emt 0:00:00]} c5 {[%emt 0:00:00]} 3. dxc5 {[%emt 0:00:06]} e6 {[%emt 0:00:00]} 4. e3 {[%emt 0:00:58]} Bxc5 {[%emt 0:00:18]} 5. a3 {[%emt 0:00:07]} a5 {[%emt 0:02:08]} 6. Nbd2 {[%emt 0:03:06]} Nf6 {[%emt 0:02:25]} 7. c4 {[%emt 0:02:15]} O-O {[%emt 0:01:45]} 8. cxd5 {[%emt 0:03:25]} exd5 {[%emt 0:01:00]} 9. Nb3 {[%emt 0:01:05]} b6 {[%emt 0:06:50]} 10. Be2 {[%emt 0:03:59]} Bf5 {[%emt 0:04:48]} 11. O-O {[%emt 0:02:33]} Nbd7 {[%emt 0:04:11]} 12. Nbd4 {[%emt 0:16:07]} Be4 {[%emt 0:00:47]} 13. b3 {[%emt 0:02:07]} Bxf3 {[%emt 0:12:37]} 14. Bxf3 {[%emt 0:07:37]} Ne5 {[%emt 0:02:03]} 15. Bb2 {[%emt 0:03:35]} Qd7 {[%emt 0:03:19]} 16. Qe2 {[%emt 0:04:15]} Rac8 {[%emt 0:09:49]} 17. Rfd1 {[%emt 0:02:09]} Rfd8 {[%emt 0:01:50]} 18. Rac1 {[%emt 0:05:04]} Qe8 {[%emt 0:10:16]} 19. g3 {[%emt 0:04:24]} Qf8 {[%emt 0:05:30]} 20. Ra1 {[%emt 0:07:13]} Nxf3+ {[%emt 0:06:03]} 21. Qxf3 {[%emt 0:01:16]} Ne4 {[%emt 0:00:16]} 22. Nf5 {[%emt 0:02:38]} f6 {[%emt 0:00:36]} 23. Qg4 {[%emt 0:06:22]} Kh8 {[%emt 0:12:05]} 24. Rd3 {[%emt 0:02:56]} Qf7 {[%emt 0:04:11]} 25. Rad1 {[%emt 0:01:29]} Bf8 {[%emt 0:00:23]} 26. Nd4 {[%emt 0:04:24]} Re8 {[%emt 0:02:59]} 27. h4 {[%emt 0:05:33]} h5 {[%emt 0:03:04]} 28. Qe2 {[%emt 0:02:41]} Red8 {[%emt 0:03:08]} 29. Nb5 {[%emt 0:03:00]} Nc5 {[%emt 0:00:41]} 30. Rc3 {[%emt 0:00:35]} Qg6 {[%emt 0:00:35]} 31. Rdc1 {[%emt 0:02:04]} Rb8 {[%emt 0:00:39]} 32. Nd4 {[%emt 0:00:36]} Re8 {[%emt 0:00:54]} 33. b4 {[%emt 0:02:08]} Ne4 {[%emt 0:00:41]} 34. Rb3 {[%emt 0:00:33]} a4 {[%emt 0:00:19]} 35. Rd3 {[%emt 0:00:24]} Rbc8 {[%emt 0:00:37]} 36. Rcd1 {[%emt 0:00:38]} Bd6 {[%emt 0:00:35]} 37. Qf3 {[%emt 0:00:31]} Be5 {[%emt 0:00:21]} 38. Ba1 {[%emt 0:00:33]} Bxd4 {[%emt 0:00:34]} 39. Rxd4 {[%emt 0:00:32]} Rc2 {[%emt 0:00:05]} 40. Rxd5 {[%emt 0:00:00]} Rxf2 {[%emt 0:00:00]} 41. Qxh5+ {[%emt 0:03:26]} Qxh5 {[%emt 0:00:54]} 42. Rxh5+ {[%emt 0:00:09]} Kg8 {[%emt 0:00:06]} 43. Rhd5 {[%emt 0:07:45]} Kh7 {[%emt 0:01:06]} 44. Rd8 {[%emt 0:07:56]} Re6 {[%emt 0:00:22]} 45. b5 {[%emt 0:04:04]} Ra2 {[%emt 0:00:44]} 46. R8d3 {[%emt 0:03:19]} Nxg3 {[%emt 0:00:28]} 47. Bd4 {[%emt 0:02:18]} Nf5 {[%emt 0:10:16]} 48. Rc1 {[%emt 0:02:17]} Re4 {[%emt 0:01:35]} 49. Bxb6 {[%emt 0:02:16]} Rg4+ {[%emt 0:00:05]} 50. Kf1 {[%emt 0:00:43]} Ng3+ {[%emt 0:00:06]} 51. Ke1 {[%emt 0:00:29]} Ne4 {[%emt 0:00:06]} 52. Kf1 {[%emt 0:01:41]} Rf2+ {[%emt 0:00:09]} 0-1

[Event "WYCC 2018 G14"]
[Site "Halkidiki"]
[Date "2018.10.21"]
[Round "3"]
[White "Zhou, Iris"]
[Black "Kuhar, Larisa"]
[Result "1/2-1/2"]
[ECO "B92"]
[WhiteElo "1779"]
[BlackElo "1916"]
[Annotator "NA"]
[PlyCount "119"]
[EventDate "2018.10.20"]
[EventType "swiss"]
[EventCountry "GRE"]
[SourceTitle "playchess.com"]
[Source "ChessBase"]
[SourceQuality "1"]
[TimeControl "40/5400+30:1800+30"]

1. e4 {[%emt 0:00:00]} c5 {[%emt 0:00:00]} 2. Nf3 {[%emt 0:00:00]} d6 {[%emt 0:00:00]} 3. d4 {[%emt 0:00:00]} cxd4 {[%emt 0:00:00]} 4. Nxd4 Nf6 {[%emt 0:00:07]} 5. Nc3 {[%emt 0:00:00]} a6 {[%emt 0:00:13]} 6. Be2 {[%emt 0:00:00]} e5 {[%emt 0:00:17]} 7. Nb3 {[%emt 0:00:04]} Be6 {[%emt 0:00:23]} 8. O-O {[%emt 0:00:11]} Be7 {[%emt 0:00:18]} 9. Be3 {[%emt 0:00:09]} O-O {[%emt 0:00:43]} 10. Nd5 {[%emt 0:00:37]} Bxd5 {[%emt 0:04:25]} 11. exd5 {[%emt 0:00:12]} Nbd7 {[%emt 0:00:56]} 12. c4 {[%emt 0:06:23]} Rc8 {[%emt 0:02:05]} 13. Rc1 {[%emt 0:03:22] B92: Sicilian Najdorf: 6 Be2} Re8 {[%emt 0:08:32]} 14. f4 {[%emt 0:09:20]} exf4 {[%emt 0:06:46]} 15. Bxf4 $146 {[%emt 0:01:48]} ({Predecessor:} 15. Rxf4 Bf8 16. Bd4 g6 17. Rf1 Bh6 18. Rc3 Ne4 19. Rh3 Bg7 20. Bxg7 Kxg7 {1-0 (56) Ziaziulkina,N (2386)-Revo,T (2086) Minsk 2017}) 15... Bf8 {[%emt 0:05:25]} 16. Nd4 {[%emt 0:09:17]} Qb6 {[%emt 0:07:22]} 17. Kh1 {[%emt 0:07:52]} g6 {[%emt 0:05:34]} 18. b3 {[%emt 0:05:48]} Bg7 {[%emt 0:05:20]} 19. Nc2 {[%emt 0:07:01]} Ne4 {[%emt 0:13:17]} 20. Be3 {[%emt 0:02:20]} Qd8 {[%emt 0:01:57]} 21. Bd3 {[%emt 0:03:02]} Nec5 {[%emt 0:13:05]} 22. Bd4 {[%emt 0:06:46]} Nxd3 {[%emt 0:07:48]} 23. Qxd3 {[%emt 0:00:40]} Ne5 {[%emt 0:00:29]} 24. Qd2 {[%emt 0:03:24]} Qh4 {[%emt 0:03:51]} 25. Rce1 {[%emt 0:07:35]} Qd8 {[%emt 0:07:59]} 26. Qf2 {[%emt 0:04:27]} Qd7 {[%emt 0:00:13]} 27. Qg3 {[%emt 0:01:10]} Qc7 {[%emt 0:02:37]} 28. Re2 {[%emt 0:05:53]} Nd7 {[%emt 0:02:19]} 29. Rxe8+ {[%emt 0:02:14]} Rxe8 {[%emt 0:00:02]} 30. Bxg7 {[%emt 0:00:28]} Kxg7 {[%emt 0:00:06]} 31. Qf4 {[%emt 0:01:16]} Ne5 {[%emt 0:01:18]} 32. Nd4 {[%emt 0:02:09]} Qd8 {[%emt 0:01:26]} 33. Ne2 {[%emt 0:01:30]} Qe7 {[%emt 0:00:40]} 34. Ng3 {[%emt 0:00:44]} Nd3 {[%emt 0:00:52]} 35. Qd4+ {[%emt 0:00:18]} Ne5 {[%emt 0:00:05]} 36. Ne4 {[%emt 0:01:31]} f5 {[%emt 0:00:19]} 37. Ng3 {[%emt 0:01:11]} Kg8 {[%emt 0:00:21]} 38. Re1 {[%emt 0:04:21]} Qf6 {[%emt 0:01:12]} 39. Qb6 {[%emt 0:02:35]} Re7 {[%emt 0:00:34]} 40. Qd8+ {[%emt 0:00:00]} Kf7 {[%emt 0:00:00]} 41. a3 {[%emt 0:13:05]} Nd3 {[%emt 0:11:35]} 42. Rxe7+ {[%emt 0:00:21]} Qxe7 {[%emt 0:00:07]} 43. Qxe7+ {[%emt 0:00:05]} Kxe7 {[%emt 0:00:07]} 44. Kg1 {[%emt 0:02:06]} Nc5 {[%emt 0:03:28]} 45. b4 {[%emt 0:00:14]} Na4 {[%emt 0:00:32]} 46. Nf1 {[%emt 0:02:18]} Nb6 {[%emt 0:00:23]} 47. Nd2 {[%emt 0:00:09]} Na4 {[%emt 0:03:44]} 48. Kf2 {[%emt 0:01:11]} Kf6 {[%emt 0:08:12]} 49. Ke3 {[%emt 0:00:43]} b5 {[%emt 0:01:01]} 50. Kd4 {[%emt 0:02:58]} Nb6 {[%emt 0:03:42]} 51. c5 {[%emt 0:01:27]} Nc8 {[%emt 0:00:31]} 52. Nb3 {[%emt 0:01:30]} g5 {[%emt 0:01:05]} 53. h3 {[%emt 0:02:46]} h5 {[%emt 0:00:13]} 54. cxd6 {[%emt 0:01:15]} (54. Nd2 $16) 54... Nxd6 {[%emt 0:00:19]} 55. Nc5 {[%emt 0:00:21]} Nc4 {[%emt 0:00:39]} (55... h4 $14) 56. Nxa6 {[%emt 0:01:10]} Nxa3 {[%emt 0:00:27]} 57. Nc7 {[%emt 0:02:40]} g4 {[%emt 0:01:26]} 58. hxg4 {[%emt 0:00:44]} fxg4 {[%emt 0:00:14]} 59. Ke4 {[%emt 0:04:48]} Nc2 $11 {[%emt 0:00:54]} 60. Nxb5 1/2-1/2

[Event "WYCC 2018 G14"]
[Site "Halkidiki"]
[Date "2018.10.21"]
[Round "3"]
[White "Maciulaityte, Barbora"]
[Black "Lehaci, Miruna-Daria"]
[Result "0-1"]
[ECO "C18"]
[WhiteElo "1715"]
[BlackElo "1933"]
[Annotator "NA"]
[PlyCount "76"]
[EventDate "2018.10.20"]
[EventType "swiss"]
[EventCountry "GRE"]
[SourceTitle "playchess.com"]
[Source "ChessBase"]
[SourceQuality "1"]
[TimeControl "40/5400+30:1800+30"]

1. e4 {[%emt 0:00:00]} e6 {[%emt 0:00:00]} 2. d4 {[%emt 0:00:00]} d5 {[%emt 0:00:00]} 3. Nc3 {[%emt 0:00:00]} Bb4 {[%emt 0:00:00]} 4. e5 {[%emt 0:00:00]} c5 {[%emt 0:00:00]} 5. a3 {[%emt 0:00:04]} Bxc3+ {[%emt 0:00:00]} 6. bxc3 {[%emt 0:00:07]} Qa5 {[%emt 0:00:00]} 7. Nf3 {[%emt 0:00:24]} Ne7 {[%emt 0:00:37]} 8. Bd3 {[%emt 0:00:46]} h6 {[%emt 0:05:33]} 9. Bd2 {[%emt 0:03:47]} Qa4 {[%emt 0:00:53]} 10. h4 {[%emt 0:01:13]} b6 {[%emt 0:01:20]} 11. h5 {[%emt 0:01:36]} Ba6 {[%emt 0:01:47]} 12. Bxa6 {[%emt 0:01:22]} Nxa6 {[%emt 0:04:58]} 13. Be3 {[%emt 0:06:45]} c4 {[%emt 0:01:15]} 14. Nh4 {[%emt 0:00:51]} O-O-O {[%emt 0:06:04]} 15. g4 {[%emt 0:10:24]} g5 {[%emt 0:04:52]} 16. Nf3 {[%emt 0:03:11]} Nc7 {[%emt 0:02:44]} 17. Qb1 {[%emt 0:05:13]} Nc6 {[%emt 0:03:23]} 18. Kf1 {[%emt 0:03:57]} b5 {[%emt 0:02:29]} 19. Kg2 {[%emt 0:01:29]} Na8 {[%emt 0:00:22]} 20. Qb2 {[%emt 0:03:14]} Nb6 {[%emt 0:00:35]} 21. Bd2 {[%emt 0:01:24]} Qa5 {[%emt 0:01:15]} 22. Qc1 {[%emt 0:00:22]} Na4 {[%emt 0:00:26]} 23. Qe1 {[%emt 0:00:11]} a6 {[%emt 0:01:59]} 24. Qe3 {[%emt 0:02:07]} Qc7 {[%emt 0:01:11]} 25. Rhe1 {[%emt 0:01:44]} Rhf8 {[%emt 0:02:46]} 26. Re2 {[%emt 0:02:38]} Kb7 {[%emt 0:00:32]} 27. Ree1 {[%emt 0:00:09]} Rde8 {[%emt 0:00:47]} 28. Re2 {[%emt 0:01:19]} Nb6 {[%emt 0:03:43]} 29. Ree1 {[%emt 0:00:33]} Nb8 {[%emt 0:07:39]} 30. Re2 {[%emt 0:02:34]} N8d7 {[%emt 0:00:34]} 31. Ree1 {[%emt 0:00:25]} f6 {[%emt 0:05:36]} 32. exf6 {[%emt 0:01:20]} Rxf6 {[%emt 0:00:04]} 33. Ne5 {[%emt 0:01:48]} Ref8 {[%emt 0:00:34]} 34. Ng6 {[%emt 0:09:27]} Rxf2+ {[%emt 0:01:17]} 35. Qxf2 {[%emt 0:00:21]} Rxf2+ {[%emt 0:00:03]} 36. Kxf2 {[%emt 0:00:13]} Qh2+ {[%emt 0:00:11]} 37. Ke3 {[%emt 0:01:54]} Qg3+ {[%emt 0:00:16]} 38. Ke2 {[%emt 0:00:06]} Qxg4+ {[%emt 0:00:05]} 0-1

[Event "WYCC 2018 G14"]
[Site "Halkidiki"]
[Date "2018.10.21"]
[Round "3"]
[White "Ruzic, Pia Marie"]
[Black "Baiburina, Kamilla"]
[Result "0-1"]
[ECO "A22"]
[WhiteElo "1691"]
[BlackElo "1907"]
[Annotator "NA"]
[PlyCount "108"]
[EventDate "2018.10.20"]
[EventType "swiss"]
[EventCountry "GRE"]
[SourceTitle "playchess.com"]
[Source "ChessBase"]
[SourceQuality "1"]
[TimeControl "40/5400+30:1800+30"]

1. c4 {[%emt 0:00:00]} e5 {[%emt 0:00:00]} 2. Nc3 {[%emt 0:00:00]} Nf6 {[%emt 0:00:00]} 3. Nf3 {[%emt 0:00:00]} d6 {[%emt 0:00:05]} 4. g3 {[%emt 0:00:26]} c6 {[%emt 0:00:15]} 5. Bg2 {[%emt 0:00:36]} Be7 {[%emt 0:00:52]} 6. O-O {[%emt 0:00:54]} O-O {[%emt 0:00:14]} 7. d3 {[%emt 0:00:51]} Nbd7 {[%emt 0:02:36]} 8. b4 {[%emt 0:02:42]} Re8 {[%emt 0:03:15]} 9. Rb1 {[%emt 0:03:19]} Bf8 {[%emt 0:01:55]} 10. a4 {[%emt 0:05:34]} a5 {[%emt 0:02:48]} 11. b5 {[%emt 0:03:16]} d5 {[%emt 0:03:46]} 12. Nd2 {[%emt 0:05:26]} Nc5 {[%emt 0:07:21]} 13. Qc2 {[%emt 0:06:46]} Be6 {[%emt 0:06:18]} 14. Bb2 {[%emt 0:06:42]} Rc8 {[%emt 0:05:55]} 15. Ba1 {[%emt 0:05:22]} h6 {[%emt 0:06:53]} 16. Rfc1 {[%emt 0:02:09]} Nh7 {[%emt 0:09:25]} 17. Qd1 {[%emt 0:12:51]} f5 {[%emt 0:03:54]} 18. bxc6 {[%emt 0:03:39]} bxc6 {[%emt 0:00:16]} 19. cxd5 {[%emt 0:00:29]} cxd5 {[%emt 0:01:06]} 20. Nf3 {[%emt 0:00:57]} Nd7 {[%emt 0:06:09]} 21. Nb5 {[%emt 0:03:28]} d4 {[%emt 0:08:10]} 22. Bb2 {[%emt 0:07:21]} Nc5 {[%emt 0:03:51]} 23. Ba3 {[%emt 0:09:24]} Ba2 {[%emt 0:04:13]} 24. Bxc5 {[%emt 0:04:05]} Bxc5 {[%emt 0:01:06]} 25. Ra1 {[%emt 0:00:20]} Bf7 {[%emt 0:01:43]} 26. Nd2 {[%emt 0:00:56]} Qe7 {[%emt 0:02:35]} 27. Nc4 {[%emt 0:02:31]} Bb4 {[%emt 0:05:00]} 28. Nb6 {[%emt 0:01:45]} Rc5 {[%emt 0:01:19]} 29. Rxc5 {[%emt 0:03:52]} Qxc5 {[%emt 0:01:49]} 30. Nd5 {[%emt 0:00:17]} Bxd5 {[%emt 0:03:26]} 31. Rc1 {[%emt 0:00:05]} Bc3 {[%emt 0:00:43]} 32. Bxd5+ {[%emt 0:01:17]} Qxd5 {[%emt 0:00:28]} 33. Nc7 {[%emt 0:00:04]} Qd7 {[%emt 0:01:02]} 34. Nxe8 {[%emt 0:01:14]} Qxe8 {[%emt 0:00:01]} 35. Qb3+ {[%emt 0:00:15]} Kh8 {[%emt 0:02:16]} 36. Rb1 {[%emt 0:00:09]} Nf6 {[%emt 0:01:50]} 37. Qc4 {[%emt 0:01:30]} Bb4 {[%emt 0:01:11]} 38. Rc1 {[%emt 0:01:30]} Kh7 {[%emt 0:00:33]} 39. Qc7 {[%emt 0:01:01]} Nd5 {[%emt 0:00:55]} 40. Qb7 {[%emt 0:00:00]} Nc3 {[%emt 0:00:00]} 41. Qf3 {[%emt 0:02:43]} Qd7 {[%emt 0:02:56]} 42. Rc2 {[%emt 0:02:19]} e4 {[%emt 0:01:44]} 43. dxe4 {[%emt 0:00:13]} fxe4 {[%emt 0:00:11]} 44. Qf4 {[%emt 0:00:58]} d3 {[%emt 0:01:44]} 45. Rxc3 {[%emt 0:01:04]} d2 {[%emt 0:05:51]} 46. Qxe4+ {[%emt 0:00:14]} g6 {[%emt 0:04:17]} 47. Rd3 {[%emt 0:00:17]} d1=Q+ {[%emt 0:00:41]} 48. Rxd1 {[%emt 0:00:02]} Qxd1+ {[%emt 0:00:02]} 49. Kg2 {[%emt 0:00:03]} Qxa4 {[%emt 0:01:34]} 50. h4 {[%emt 0:00:17]} h5 {[%emt 0:01:30]} 51. g4 {[%emt 0:04:32]} Qb5 {[%emt 0:00:49]} 52. g5 {[%emt 0:01:54]} a4 {[%emt 0:01:24]} 53. Kf1 {[%emt 0:04:48]} a3 {[%emt 0:01:15]} 54. Qf4 {[%emt 0:00:18]} Bc3 {[%emt 0:02:09]} 0-1